bitfinex-derivatives/quotes_SOLF0:USTF0_20260118
["timestamp","ask_amount","ask_price","bid_price","bid_amount"]
[1768716118012,3.10389293,142.86,142.81,6.3047]
[1768716120416,3.10389293,142.88,142.82,6.3043]
[1768716133241,3.10389293,142.87,142.8,8.06225386]
[1768716134935,3.10389293,142.87,142.8,6.305]
[1768716135936,3.10389293,142.86,142.8,6.305]
[1768716154462,3.10389293,142.86,142.8,8.06225386]
[1768716158874,3.10389293,142.86,142.8,6.305]
[1768716165876,6.3019,142.88,142.8,6.305]
[1768716166077,9.41621651,142.9,142.82,6.3043]
[1768716166282,5.42599804,142.89,142.83,1.75725386]
[1768716166482,9.41621651,142.9,142.83,1.75725386]
[1768716166683,5.42617349,142.89,142.83,1.75725386]
[1768716166885,9.41621651,142.9,142.83,1.75725386]
[1768716167087,5.42617349,142.89,142.83,1.75725386]
[1768716167389,9.41621651,142.9,142.83,1.75725386]
[1768716167582,5.42629514,142.89,142.83,1.75725386]
[1768716167783,9.41621651,142.9,142.83,8.06115386]
[1768716168079,5.42629514,142.89,142.83,8.06115386]
[1768716168280,9.41621651,142.9,142.83,8.06115386]
[1768716170588,3.11501651,142.89,142.83,8.06115386]
[1768716170784,3.11501651,142.89,142.83,1.75725386]
[1768716171987,3.14220017,142.87,142.79,1.75725386]
[1768716172989,3.14220017,142.87,142.8,6.3051]
[1768716182286,1.5768282,142.79,142.69,3.26970017]
[1768716182788,1.5768282,142.79,142.67,98.169]
[1768716182789,1.5768282,142.76,142.7,3.26970017]
[1768716184382,6.307,142.77,142.7,3.26970017]
[1768716186891,7.89302775,142.77,142.7,3.26970017]
[1768716187686,1.58832125,142.76,142.7,3.26970017]
[1768716192990,1.59945473,142.78,142.71,3.26970017]
[1768716193189,1.59945473,142.78,142.72,5.02960537]
[1768716196199,1.59945473,142.78,142.73,3.26970017]
[1768716209505,1.7599052,142.79,142.73,3.26970017]
[1768716210809,6.3055,142.8,142.73,3.26970017]
[1768716211605,7.94584816,142.8,142.73,3.26970017]
[1768716214607,7.94999786,142.82,142.74,1.7599052]
[1768716214811,7.94999786,142.82,142.75,3.09912966]
[1768716232334,1.64529786,142.82,142.77,3.25878379]
[1768716232528,7.95594121,142.84,142.77,3.25878379]
[1768716237839,7.95594121,142.84,142.77,9.56538379]
[1768716243243,7.95594121,142.84,142.78,3.25878379]
[1768716243443,1.65224121,142.84,142.79,3.25878379]
[1768716243645,7.94620159,142.86,142.79,3.25878379]
[1768716244144,1.64340159,142.85,142.79,3.25878379]
[1768716270864,1.62928299,142.83,142.77,3.20536129]
[1768716271875,7.93338299,142.83,142.77,3.20536129]
[1768716272679,1.7578091,142.82,142.77,3.20536129]
[1768716277882,1.62928299,142.83,142.77,3.20536129]
[1768716278188,1.7578091,142.84,142.77,3.20536129]
[1768716278881,8.0614091,142.84,142.77,3.20536129]
[1768716282381,9.67928909,142.84,142.77,3.20536129]
[1768716282976,8.0614091,142.84,142.77,3.20536129]
[1768716284983,7.92055227,142.84,142.77,3.20536129]
[1768716285192,9.67836137,142.84,142.77,3.20536129]
[1768716289882,3.37476137,142.84,142.77,3.20536129]
[1768716292889,3.37476137,142.84,142.77,9.51186129]
[1768716293086,3.37476137,142.84,142.78,3.20011561]
[1768716295690,1.61695227,142.84,142.79,3.20011561]
[1768716312802,8.06133209,142.85,142.79,3.20011561]
[1768716313798,9.66605316,142.85,142.79,3.20011561]
[1768716314000,7.90792107,142.85,142.79,3.20011561]
[1768716317100,1.60472107,142.85,142.79,3.20011561]
[1768716317302,9.66418589,142.87,142.8,3.20011561]
[1768716318806,9.66418589,142.87,142.8,9.50531561]
[1768716319108,7.9060538,142.87,142.8,3.20011561]
[1768716321202,6.3027,142.86,142.8,3.20011561]
[1768716324905,6.3033,142.85,142.8,3.20011561]
[1768716326307,6.3033,142.85,142.8,4.9582477]
[1768716327018,6.3033,142.85,142.81,3.21856221]
[1768716327808,7.9059538,142.87,142.82,1.75813209]
[1768716328014,1.59889368,142.89,142.83,3.21856221]
[1768716328806,6.3018,142.88,142.83,3.21856221]
[1768716335920,1.59889368,142.89,142.83,3.21856221]
[1768716352329,7.90029368,142.89,142.83,3.21856221]
[1768716359338,1.59889368,142.89,142.83,3.21856221]
[1768716363942,1.59889368,142.89,142.83,9.52246221]
[1768716369148,1.59889368,142.89,142.84,3.16917056]
[1768716369448,1.58920415,142.91,142.85,3.16917056]
[1768716369952,1.58920415,142.91,142.86,3.16917056]
[1768716376052,7.88785383,142.93,142.86,3.16917056]
[1768716376255,1.58825383,142.93,142.86,3.16917056]
[1768716377868,1.58825383,142.93,142.87,3.16917056]
[1768716381361,1.75670226,142.9,142.85,3.16917056]
[1768716381960,97.9737,142.96,142.85,3.16917056]
[1768716381961,1.75670226,142.92,142.85,3.16917056]
[1768716382465,3.3420752,142.92,142.85,3.16917056]
[1768716386966,9.6422752,142.92,142.85,3.16917056]
[1768716388771,1.58456475,142.91,142.85,3.16917056]
[1768716391678,3.34126701,142.91,142.85,3.16917056]
[1768716396680,9.64176701,142.91,142.85,3.16917056]
[1768716406893,7.88506475,142.91,142.85,3.16917056]
[1768716413901,1.58456475,142.91,142.85,3.16917056]
[1768716415001,1.58456475,142.91,142.85,9.47217056]
[1768716417506,1.58456475,142.91,142.86,6.3026]
[1768716418907,1.58456475,142.91,142.85,3.16917056]
[1768716424103,1.58128628,142.93,142.86,3.29976527]
[1768716425014,1.58120193,142.92,142.86,3.29976527]
[1768716426916,7.88130193,142.92,142.86,3.29976527]
[1768716430915,1.58120193,142.92,142.86,3.29976527]
[1768716434921,9.63571766,142.94,142.86,3.29976527]
[1768716438015,6.2997,142.93,142.86,3.29976527]
[1768716441922,6.3001,142.92,142.86,3.29976527]
[1768716448832,6.3005,142.91,142.86,3.29976527]
[1768716449628,6.301,142.9,142.86,3.29976527]
[1768716460941,1.57869797,142.92,142.86,3.29976527]
[1768716468251,1.57833437,142.94,142.86,3.29976527]
[1768716468934,1.57833437,142.94,142.87,3.32754155]
[1768716470445,3.33409514,142.93,142.87,3.32754155]
[1768716473446,1.57825385,142.92,142.85,3.15987895]
[1768716473748,3.33416167,142.92,142.85,3.15987895]
[1768716474848,3.33416167,142.92,142.86,3.15987895]
[1768716475543,3.33416167,142.92,142.86,9.46237895]
[1768716476348,1.57825385,142.92,142.86,9.46237895]
[1768716481657,1.57825385,142.92,142.87,3.15987895]
[1768716489959,7.87845385,142.92,142.87,3.15987895]
[1768716490259,6.3002,142.92,142.87,3.15987895]
[1768716494160,6.3005,142.91,142.87,3.15987895]
[1768716495373,6.3005,142.91,142.87,7.895e-05]
[1768716500271,6.3011,142.9,142.87,7.895e-05]
[1768716500473,1.57739612,142.93,142.87,7.895e-05]
[1768716501770,6.3011,142.9,142.87,7.895e-05]
[1768716507580,6.3011,142.9,142.85,13.11728434]
[1768716507777,6.3011,142.9,142.85,16.36750439]
[1768716508277,6.3011,142.9,142.86,13.11728434]
[1768716511577,6.3011,142.9,142.87,2.005e-05]
[1768716511778,3.15713051,142.92,142.87,2.005e-05]
[1768716512781,6.3011,142.9,142.87,2.005e-05]
[1768716513885,3.15713051,142.92,142.87,2.005e-05]
[1768716514788,6.3011,142.9,142.86,14.87302532]
[1768716515881,6.3011,142.9,142.86,13.11728434]
[1768716518291,6.3011,142.9,142.86,16.41494622]
[1768716519991,6.3011,142.9,142.86,3.29766188]
[1768716521991,9.45733051,142.92,142.86,3.29766188]
[1768716523497,6.3002,142.92,142.86,3.29766188]
[1768716523693,6.3002,142.92,142.88,3.29766188]
[1768716523897,6.3002,142.92,142.88,267.79766188]
[1768716524088,9.49812146,142.94,142.88,267.79766188]
[1768716524786,6.2997,142.93,142.88,267.79766188]
[1768716525797,6.299,142.95,142.9,3.29766188]
[1768716528804,3.19862146,142.96,142.9,3.29766188]
[1768716528805,6.2993,142.94,142.9,3.29766188]
[1768716529102,3.19862146,142.96,142.9,3.29766188]
[1768716529303,9.49692146,142.96,142.9,3.29766188]
[1768716529897,3.19862146,142.96,142.9,3.29766188]
[1768716534600,3.26737964,142.95,142.9,3.29766188]
[1768716539803,6.2968,143.0,142.9,3.29766188]
[1768716540002,3.26737964,142.99,142.92,3.36670907]
[1768716540197,3.26737964,142.99,142.88,362.5233]
[1768716540198,1.75574098,143.03,142.94,3.36670907]
[1768716540404,3.26737964,143.02,142.94,5.12245005]
[1768716541011,3.26737964,143.02,142.94,11.42145005]
[1768716541408,3.26737964,143.02,142.95,3.36670907]
[1768716541911,3.26737964,143.02,142.95,9.66520907]
[1768716542210,3.26737964,143.02,142.96,1.75574098]
[1768716542808,3.26737964,143.02,142.97,3.36670907]
[1768716543005,3.26737964,143.04,142.98,1.75574098]
[1768716544501,5.02312062,143.04,142.95,3.36670907]
[1768716544706,3.26737964,143.03,142.96,1.75574098]
[1768716546014,3.26737964,143.03,142.96,8.05384098]
[1768716547916,3.26737964,143.03,142.98,1.75574098]
[1768716549416,3.26737964,143.03,142.98,1.75307645]
[1768716562930,3.26737964,143.03,143.0,1.75307645]
[1768716570934,9.56267964,143.03,142.99,1.75307645]
[1768716571733,9.56267964,143.03,142.99,7.645e-05]
[1768716573825,9.56267964,143.03,142.98,4.9436004]
[1768716574935,6.2958,143.02,142.98,4e-07]
[1768716576838,3.26737964,143.03,142.98,4e-07]
[1768716578741,9.56257964,143.03,142.98,4e-07]
[1768716579636,9.56257964,143.03,142.97,4.9609189]
[1768716581437,3.33320614,143.01,142.95,3.20784245]
[1768716581638,3.33320614,143.01,142.93,4.9609189]
[1768716585338,3.33320614,143.01,142.94,3.20784245]
[1768716588948,3.33320614,143.01,142.94,9.50694245]
[1768716592950,3.33320614,143.01,142.95,5.18338192]
[1768716593856,3.33320614,143.01,142.96,6.2981]
[1768716596070,3.33320614,143.01,142.97,6.2974]
[1768716596263,4.95985265,143.03,142.97,9.72770547]
[1768716596568,3.2067762,143.03,142.97,9.72770547]
[1768716596868,3.2067762,143.03,142.98,6.2973]
[1768716606080,1.75307645,143.02,142.98,6.2973]
[1768716606576,3.2067762,143.01,142.96,6.298]
[1768716606778,3.2067762,142.99,142.93,3.43030547]
[1768716607874,3.2067762,142.99,142.94,6.2988]
[1768716615484,3.2067762,142.99,142.92,6.2998]
[1768716617076,1.75444239,142.98,142.9,6.3005]
[1768716617276,97.9424,143.01,142.89,3.43030547]
[1768716617277,3.2067762,142.95,142.89,3.43030547]
[1768716617880,3.2067762,142.95,142.89,9.73150547]
[1768716621385,3.2067762,142.95,142.89,6.3012]
[1768716630479,3.47897878,142.94,142.86,3.65460871]
[1768716633294,3.47897878,142.94,142.87,1.75444239]
[1768716642799,3.47897878,142.94,142.87,5.1707351]
[1768716643603,3.47897878,142.94,142.88,3.41629271]
[1768716646706,3.47897878,142.94,142.89,5.1707351]
[1768716649209,3.70660458,142.96,142.89,5.1707351]
[1768716653012,3.51758828,142.95,142.89,3.41629271]
[1768716655715,3.51758828,142.95,142.87,3.46919941]
[1768716669921,3.51758828,142.97,142.89,1.75444239]
[1768716670128,3.51758828,142.97,142.9,3.46919941]
[1768716671321,3.51758828,142.97,142.91,3.46919941]
[1768716672924,3.51758828,142.97,142.92,9.76909941]
[1768716673625,3.51758828,142.97,142.9,3.46919941]
[1768716673832,3.51758828,142.96,142.9,3.46919941]
[1768716674132,3.51758828,142.94,142.81,124.6526589]
[1768716674427,3.51758828,142.92,142.86,3.46919941]
[1768716686938,1.75465376,142.93,142.86,3.46919941]
[1768716687241,3.58114083,142.94,142.87,3.66991382]
[1768716688033,1.75465376,142.95,142.87,3.66991382]
[1768716688437,5.33579459,142.96,142.87,3.66991382]
[1768716689041,3.58114083,142.95,142.87,3.66991382]
[1768716693139,3.58114083,142.93,142.87,3.66991382]
[1768716707167,1.75465376,142.96,142.87,3.66991382]
[1768716707168,3.66571894,142.95,142.87,3.66991382]
[1768716742988,3.66571894,142.95,142.89,3.39575357]
[1768716752804,5.31586673,142.97,142.89,3.39575357]
[1768716754201,5.31586673,142.97,142.92,6.2997]
[1768716760400,3.47594219,142.96,142.92,6.2997]
[1768716760707,5.23132052,142.97,142.92,9.698285]
[1768716770710,5.23132052,142.97,142.92,6.2997]
[1768716772914,5.23132052,142.97,142.9,3.398585]
[1768716777115,3.47594219,142.97,142.9,3.398585]
[1768716787031,3.47594219,142.97,142.91,3.49941184]
[1768716791939,3.47594219,142.97,142.91,9.79961184]
[1768716795440,3.47594219,142.97,142.92,3.49941184]
[1768716795741,3.47594219,142.97,142.92,9.79931184]
[1768716799036,3.47594219,142.97,142.92,3.49941184]
[1768716801349,5.19196064,142.99,142.92,3.49941184]
[1768716802749,5.19196064,142.99,142.92,9.79931184]
[1768716803248,3.62122029,142.98,142.92,9.79931184]
[1768716804342,3.62122029,142.98,142.93,3.68014487]
[1768716805450,1.75461149,142.99,142.93,3.68014487]
[1768716811449,5.37583178,142.99,142.93,3.68014487]
[1768716817060,3.62122029,142.99,142.93,3.68014487]
[1768716817255,5.37583178,142.99,142.93,3.68014487]
[1768716822861,3.31098119,142.98,142.93,3.68014487]
[1768716823160,3.31098119,142.98,142.88,3.57444001]
[1768716824154,9.60838119,142.98,142.9,6.3008]
[1768716824360,9.60838119,142.98,142.91,3.57444001]
[1768716825464,3.31098119,142.97,142.91,3.57444001]
[1768716825858,3.31098119,142.96,142.89,3.57444001]
[1768716826063,3.31098119,142.95,142.89,3.57444001]
[1768716827451,3.31098119,142.95,142.84,127.7333924]
[1768716827452,3.31098119,142.93,142.87,3.57444001]
[1768716837073,1.75461149,142.94,142.87,3.57444001]
[1768716837270,3.49259238,142.95,142.87,3.57444001]
[1768716847883,3.49259238,142.95,142.88,1.75461149]
[1768716848083,3.49259238,142.95,142.89,3.32139934]
[1768716882011,3.49259238,142.95,142.87,5.2084507]
[1768716882808,3.49259238,142.95,142.88,3.45351197]
[1768716894327,3.38272845,142.94,142.86,3.3465475]
[1768716894514,3.38272845,142.93,142.86,3.3465475]
[1768716898122,6.2993,142.94,142.87,3.3465475]
[1768716898522,9.68202845,142.94,142.87,3.3465475]
[1768716900032,3.38272845,142.93,142.87,3.3465475]
[1768716900418,3.38272845,142.92,142.87,3.3465475]
[1768716902326,3.38272845,142.91,142.86,3.3465475]
[1768716902527,3.38272845,142.91,142.78,18.73086246]
[1768716902730,3.38272845,142.91,142.82,1.75493873]
[1768716903834,3.38272845,142.9,142.82,1.75493873]
[1768716904434,3.38272845,142.9,142.83,1.21741689]
[1768716908924,5.13766718,142.9,142.83,1.21741689]
[1768716909740,3.38272845,142.89,142.83,1.21741689]
[1768716920644,3.38272845,142.89,142.82,1.75654826]
[1768716920846,3.38272845,142.87,142.81,1.32323032]
[1768716944469,1.75654826,142.88,142.81,1.32323032]
[1768716945062,5.25464803,142.88,142.81,1.32323032]
[1768716945568,3.49809977,142.87,142.81,1.32323032]
[1768716952372,3.49809977,142.87,142.75,1.4948038]
[1768716952671,3.49809977,142.87,142.79,3.25135206]
[1768716964980,3.49809977,142.87,142.79,1.4948038]
[1768716965181,3.49809977,142.87,142.79,3.25135206]
[1768716968785,3.49809977,142.87,142.8,1.55411454]
[1768716978092,3.46629117,142.85,142.78,1.58294265]
[1768716979290,5.22397552,142.85,142.78,1.58294265]
[1768716979483,3.46629117,142.84,142.78,1.58294265]
[1768716981891,3.46629117,142.84,142.76,1.59489368]
[1768717018614,98.0044,142.92,142.75,1.75768435]
[1768717018615,3.83237535,142.82,142.75,1.75768435]
[1768717021322,3.83237535,142.82,142.74,1.69122461]
[1768717023222,3.83237535,142.82,142.72,3.456057]
[1768717024630,3.83237535,142.82,142.73,1.70182028]
[1768717030536,3.83237535,142.82,142.74,1.75768435]
[1768717032640,3.83237535,142.82,142.73,1.70182028]
[1768717032835,3.83237535,142.82,142.74,1.75768435]
[1768717035240,3.83237535,142.82,142.73,1.70182028]
[1768717035440,3.83237535,142.82,142.74,1.75768435]
[1768717038844,3.83237535,142.8,142.71,3.48163073]
[1768717039438,3.83237535,142.8,142.71,3.48321669]
[1768717041847,3.83237535,142.8,142.75,6.3074]
[1768717048649,3.83237535,142.8,142.73,6.308]
[1768717062052,3.70657407,142.79,142.73,6.308]
[1768717064356,3.70657407,142.79,142.72,1.75927031]
[1768717067252,3.70657407,142.79,142.72,3.52243556]
[1768717081671,3.70657407,142.79,142.73,1.77703876]
[1768717083378,5.68266741,142.78,142.73,1.77703876]
[1768717083581,3.70657407,142.79,142.73,1.77703876]
[1768717083775,9.26500612,142.78,142.73,1.77703876]
[1768717084080,3.58233871,142.78,142.73,1.77703876]
[1768717087883,3.58233871,142.78,142.72,1.75927031]
[1768717092885,9.88863871,142.78,142.72,1.75927031]
[1768717093782,15.5777674,142.77,142.72,1.75927031]
[1768717093982,9.88903871,142.77,142.72,1.75927031]
[1768717094574,3.58233871,142.77,142.72,1.75927031]
[1768717099283,3.58233871,142.77,142.71,1.78194231]
[1768717099482,3.58233871,142.77,142.72,1.75927031]
[1768717101387,3.58233871,142.77,142.71,3.54139149]
[1768717105996,3.58233871,142.77,142.71,1.78194231]
[1768717106183,3.58233871,142.77,142.71,3.54139149]
[1768717108295,3.74717244,142.79,142.72,1.79772324]
[1768717108486,3.74717244,142.79,142.73,1.75944918]
[1768717108993,3.74717244,142.79,142.72,1.79832003]
[1768717110389,9.43367144,142.78,142.72,1.79832003]
[1768717110590,3.74717244,142.77,142.72,1.79832003]
[1768717113299,3.74717244,142.77,142.7,9.86960482]
[1768717113985,3.74717244,142.77,142.71,1.80123002]
[1768717115792,3.71020285,142.76,142.7,1.75944918]
[1768717116000,3.71020285,142.76,142.69,1.80260025]
[1768717118002,3.71020285,142.76,142.69,8.11270025]
[1768717120507,3.71020285,142.76,142.69,9.87214943]
[1768717125912,3.71020285,142.76,142.69,3.56204943]
[1768717126916,10.01740285,142.76,142.69,3.56204943]
[1768717128812,10.01740285,142.76,142.69,1.80260025]
[1768717129117,3.71020285,142.75,142.69,1.80260025]
[1768717129920,10.01780285,142.75,142.69,1.80260025]
[1768717133919,3.71020285,142.75,142.69,1.80260025]
[1768717135421,3.71020285,142.75,142.68,3.5737471]
[1768717136219,3.71020285,142.75,142.68,9.8843471]
[1768717151943,3.72207853,142.74,142.68,3.5737471]
[1768717152843,3.72207853,142.74,142.68,1.81429792]
[1768717153051,10.03027853,142.74,142.68,1.81429792]
[1768717157946,3.72207853,142.74,142.68,1.81429792]
[1768717158141,3.72207853,142.74,142.68,3.5737471]
[1768717161344,3.72207853,142.74,142.68,1.81429792]
[1768717183970,3.72207853,142.74,142.68,8.12489792]
[1768717191775,3.72207853,142.74,142.66,8.14428365]
[1768717193175,1.76027942,142.73,142.66,8.14428365]
[1768717193568,5.47713558,142.73,142.66,8.14428365]
[1768717196081,3.71685616,142.72,142.66,8.14428365]
[1768717198982,3.71685616,142.72,142.66,1.83308365]
[1768717226510,5.47764861,142.72,142.64,1.84605181]
[1768717226715,3.74339902,142.71,142.64,1.84605181]
[1768717228117,3.74339902,142.71,142.65,1.76079245]
[1768717228318,3.74339902,142.71,142.65,3.60691037]
[1768717238225,3.74339902,142.71,142.65,1.84611792]
[1768717246730,3.74339902,142.71,142.65,3.60691037]
[1768717252836,3.74339902,142.71,142.68,6.3106]
[1768717255235,3.74339902,142.71,142.65,3.60691037]
[1768717255838,3.74339902,142.71,142.68,6.3106]
[1768717263942,3.74339902,142.71,142.65,1.84611792]
[1768717264436,3.74339902,142.71,142.63,1.76079245]
[1768717264646,3.74339902,142.71,142.63,5.38200732]
[1768717273550,3.74339902,142.71,142.64,3.62121487]
[1768717283360,3.74339902,142.71,142.64,5.38242798]
[1768717288260,3.74339902,142.71,142.64,3.62121487]
[1768717294569,10.05269902,142.71,142.64,3.62121487]
[1768717294766,3.81995121,142.7,142.64,3.62121487]
[1768717295760,10.12975121,142.7,142.64,3.62121487]
[1768717299178,3.46988765,142.69,142.64,3.62121487]
[1768717301477,3.46988765,142.69,142.62,99.62822998]
[1768717301677,3.46988765,142.69,142.63,1.76121311]
[1768717304476,3.46988765,142.69,142.63,5.5570829]
[1768717322496,3.46988765,142.69,142.63,3.79586979]
[1768717322794,3.46988765,142.69,142.64,1.76121311]
[1768717322982,3.46988765,142.69,142.64,5.42590917]
[1768717326597,3.46988765,142.69,142.66,1.76121311]
[1768717329392,3.59853624,142.71,142.66,1.76121311]
[1768717329594,6.3092,142.72,142.68,1.76121311]
[1768717330995,3.59853624,142.73,142.68,1.76121311]
[1768717331890,9.90703624,142.73,142.68,1.76121311]
[1768717333793,9.90703624,142.73,142.67,3.66469606]
[1768717336501,3.59853624,142.72,142.67,3.66469606]
[1768717337006,9.90743624,142.72,142.67,3.66469606]
[1768717345216,6.3094,142.71,142.67,3.66469606]
[1768717350718,6.3094,142.71,142.67,9.606e-05]
[1768717351926,6.3098,142.7,142.67,9.606e-05]
[1768717353628,6.3098,142.7,142.65,3.50018364]
[1768717355926,3.59853624,142.72,142.65,3.50018364]
[1768717359532,3.59853624,142.72,142.65,1.73944571]
[1768717359734,3.59853624,142.72,142.65,3.50018364]
[1768717363932,3.59853624,142.72,142.65,9.81198364]
[1768717364534,3.59853624,142.72,142.65,8.05124571]
[1768717367633,3.59853624,142.72,142.66,1.83199476]
[1768717372530,5.35927417,142.72,142.66,1.83199476]
[1768717377549,3.59853624,142.72,142.66,1.83199476]
[1768717381652,9.90763624,142.72,142.66,1.83199476]
[1768717381954,3.59853624,142.72,142.66,1.83199476]
[1768717385055,3.66572438,142.7,142.63,1.92241005]
[1768717386850,3.66572438,142.7,142.64,1.93146084]
[1768717395160,3.66572438,142.69,142.62,101.64131773]
[1768717396762,9.97602438,142.69,142.62,101.64131773]
[1768717398363,9.97602438,142.69,142.63,3.73845346]
[1768717398964,3.66572438,142.69,142.63,3.73845346]
[1768717406973,9.97592438,142.69,142.63,3.73845346]
[1768717407368,9.97592438,142.69,142.63,3.7391797]
[1768717410772,9.97592438,142.69,142.63,1.97771553]
[1768717411072,3.73370203,142.68,142.63,3.7391797]
[1768717423788,3.73370203,142.68,142.63,1.97771553]
[1768717423990,3.73370203,142.68,142.63,3.7391797]
[1768717425392,3.73370203,142.68,142.63,1.97771553]
[1768717425691,3.73370203,142.68,142.63,3.7391797]
[1768717430396,3.73370203,142.68,142.63,1.97771553]
[1768717432892,3.73370203,142.68,142.6,2.0333698]
[1768717433098,3.73370203,142.68,142.6,3.79483397]
[1768717434895,3.73370203,142.68,142.62,1.76146417]
[1768717442709,3.73370203,142.68,142.61,1.76146417]
[1768717443205,3.76424526,142.67,142.61,1.76146417]
[1768717450518,3.76424526,142.67,142.6,2.0333698]
[1768717450717,3.76424526,142.67,142.6,3.79483397]
[1768717460027,5.52570943,142.67,142.6,3.79483397]
[1768717462329,3.76424526,142.67,142.6,3.79483397]
[1768717462531,5.52570943,142.67,142.6,3.79483397]
[1768717467441,3.76424526,142.67,142.6,2.0333698]
[1768717467842,5.37474919,142.69,142.62,1.9070437]
[1768717468541,3.61254039,142.68,142.62,1.9070437]
[1768717483355,3.61254039,142.68,142.62,3.6692525]
[1768717483951,3.61254039,142.68,142.62,1.9070437]
[1768717484148,3.61254039,142.68,142.62,3.6692525]
[1768717492659,3.61254039,142.68,142.62,1.9070437]
[1768717492858,3.61254039,142.68,142.63,1.7622088]
[1768717494752,3.61254039,142.68,142.62,1.9070437]
[1768717494955,3.61254039,142.68,142.63,1.7622088]
[1768717503367,3.61254039,142.68,142.61,1.83228365]
[1768717503566,3.61254039,142.68,142.63,1.7622088]
[1768717507768,3.61254039,142.68,142.61,1.83228365]
[1768717508070,3.61254039,142.68,142.61,3.59449245]
[1768717511264,3.61254039,142.68,142.61,1.7622088]
[1768717519777,3.61254039,142.68,142.6,1.7622088]
[1768717523979,3.61254039,142.68,142.59,1.80228863]
[1768717524278,3.61254039,142.68,142.61,1.7622088]
[1768717527285,3.61254039,142.68,142.59,1.80228863]
[1768717527286,3.61254039,142.68,142.6,1.76210901]
[1768717528194,3.61254039,142.68,142.6,3.5385167]
[1768717529692,3.61254039,142.68,142.61,1.77361328]
[1768717539202,3.61254039,142.68,142.6,1.76022151]
[1768717539395,3.61254039,142.68,142.61,1.76210901]
[1768717551007,3.61254039,142.68,142.6,3.52233052]
[1768717553712,3.61254039,142.68,142.6,1.76022151]
[1768717553909,3.61254039,142.68,142.6,3.52233052]
[1768717556513,3.6788336,142.67,142.6,3.52233052]
[1768717562318,3.6788336,142.67,142.61,1.73467543]
[1768717567932,9.9899336,142.67,142.61,1.73467543]
[1768717570228,6.3115,142.66,142.61,1.73467543]
[1768717573731,3.6788336,142.67,142.61,1.73467543]
[1768717618179,3.6788336,142.67,142.61,3.49692794]
[1768717649311,3.6788336,142.67,142.61,1.73467543]
[1768717670025,3.52340171,142.69,142.63,1.67680487]
[1768717672824,3.52340171,142.69,142.64,6.3121]
[1768717676924,3.52340171,142.69,142.64,8.07411307]
[1768717691838,3.52340171,142.69,142.64,6.3121]
[1768717692037,3.52340171,142.69,142.63,3.43881794]
[1768717703335,3.73280934,142.68,142.62,6.313]
[1768717703535,3.73280934,142.68,142.62,9.74474397]
[1768717704035,3.73280934,142.67,142.61,103.50958374]
[1768717709151,3.73280934,142.67,142.62,1.66889216]
[1768717714156,10.04310934,142.69,142.62,1.66889216]
[1768717715156,3.71597032,142.68,142.62,1.66889216]
[1768717723957,10.02677032,142.68,142.62,1.66889216]
[1768717724260,3.71597032,142.67,142.62,1.66889216]
[1768717727059,10.02717032,142.67,142.62,1.66889216]
[1768717729963,6.3117,142.66,142.62,1.66889216]
[1768717732876,6.3117,142.66,142.62,9.216e-05]
[1768717734075,6.3117,142.66,142.63,1.76203038]
[1768717734374,6.3117,142.66,142.63,3.038e-05]
[1768717753899,3.73998498,142.67,142.63,3.038e-05]
[1768717763805,3.73998498,142.67,142.61,109.82318374]
[1768717764006,3.73998498,142.67,142.62,1.76203038]
[1768717764805,3.73998498,142.67,142.61,109.82318374]
[1768717765002,3.73998498,142.67,142.62,1.76203038]
[1768717770012,3.73998498,142.67,142.61,109.82318374]
[1768717770209,3.73998498,142.67,142.59,6.3143]
[1768717771314,3.53371257,142.66,142.59,8.07678957]
[1768717772014,3.53371257,142.66,142.59,8.19300252]
[1768717773328,3.53371257,142.66,142.6,6.314]
[1768717779930,3.53371257,142.66,142.61,6.3136]
[1768717782933,3.53371257,142.66,142.62,6.3131]
[1768717789138,3.53371257,142.66,142.63,6.3128]
[1768717794042,3.66805016,142.69,142.63,6.3128]
[1768717796341,3.66805016,142.69,142.64,6.3122]
[1768717799341,3.66805016,142.69,142.62,1.92922016]
[1768717799547,3.66805016,142.69,142.62,8.24212016]
[1768717799845,3.66805016,142.69,142.62,1.92922016]
[1768717800836,3.66805016,142.69,142.63,6.3128]
[1768717805544,3.66805016,142.68,142.61,6.3134]
[1768717807049,3.66805016,142.68,142.62,6.3132]
[1768717813057,3.66805016,142.68,142.6,6.314]
[1768717814149,1.76248957,142.67,142.6,6.314]
[1768717814350,3.66805016,142.66,142.6,6.314]
[1768717827264,3.66805016,142.66,142.6,6.53419435]
[1768717831471,3.66805016,142.66,142.6,8.29651041]
[1768717831866,3.66805016,142.66,142.6,1.98251041]
[1768717835765,3.60364636,142.65,142.6,0.22019435]
[1768717836069,3.60364636,142.65,142.59,1.76231606]
[1768717842876,9.91564636,142.65,142.59,1.76231606]
[1768717845480,9.91564636,142.65,142.59,1.78364239]
[1768717846379,6.3124,142.64,142.59,1.78364239]
[1768717846579,9.91604636,142.64,142.59,1.78364239]
[1768717848892,6.3129,142.63,142.59,1.78364239]
[1768717849889,3.60364636,142.64,142.59,1.78364239]
[1768717853593,3.60364636,142.64,142.59,0.02132633]
[1768717855803,3.60364636,142.64,142.58,127.01044473]